fUSD/lending_fUSD_20260516
["ID","MTS","AMOUNT","RATE_DAILY","PERIOD"]
[422381157,1778909433000,-549.13360265,0.00014999,2]
[422381154,1778909433000,-500.0,0.00014999,2]
[422381156,1778909433000,-500.0,0.00014999,2]
[422381159,1778909433000,-500.0,0.00014999,2]
[422381152,1778909433000,-198.14496198,0.00014999,2]
[422381151,1778909433000,-500.0,0.00014999,2]
[422381160,1778909433000,-500.0,0.00014999,2]
[422381150,1778909433000,-549.13360265,0.00014999,2]
[422381153,1778909433000,-500.0,0.00014999,2]
[422381145,1778909433000,-500.0,0.00014999,2]
[422381144,1778909433000,-549.13360265,0.00014999,2]
[422381146,1778909433000,-549.13360265,0.00014999,2]
[422381147,1778909433000,-500.0,0.00014999,2]
[422381158,1778909433000,-500.0,0.00014999,2]
[422381149,1778909433000,-500.0,0.00014999,2]
[422381148,1778909433000,-549.13360265,0.00014999,2]
[422381161,1778909433000,-500.0,0.00014999,2]
[422381162,1778909433000,-500.0,0.00014999,2]
[422381165,1778909433000,-500.0,0.00014999,2]
[422381178,1778909433000,-317.1374225,0.00014999,2]
[422381177,1778909433000,-11995.99266517,0.00014999,2]
[422381175,1778909433000,-476.99893723,0.00014999,2]
[422381176,1778909433000,-500.0,0.00014999,2]
[422381169,1778909433000,-36715.0336168,0.00014999,2]
[422381166,1778909433000,-284.15978878,0.00014999,2]
[422381174,1778909433000,-500.0,0.00014999,2]
[422381168,1778909433000,-500.0,0.00014999,2]
[422381167,1778909433000,-500.0,0.00014999,2]
[422381172,1778909433000,-15487.3155161,0.00014999,2]
[422381163,1778909433000,-500.0,0.00014999,2]
[422381173,1778909433000,-500.0,0.00014999,2]
[422381171,1778909433000,-500.0,0.00014999,2]
[422381164,1778909433000,-500.0,0.00014999,2]
[422381170,1778909433000,-500.0,0.00014999,2]
[422381181,1778909437000,-803.77393816,0.00014999,2]
[422381179,1778909437000,-209.49000112,0.000149,2]
[422381180,1778909437000,-135.82419942,0.00014999,2]
[422381182,1778909437000,-195714.18724385,0.00014999,2]
[422381183,1778909437000,-500.0,0.00014999,2]
[422381188,1778909437000,-500.0,0.00014999,2]
[422381186,1778909437000,-500.0,0.00014999,2]
[422381184,1778909437000,-500.0,0.00014999,2]
[422381187,1778909437000,-500.0,0.00014999,2]
[422381189,1778909437000,-500.0,0.00014999,2]
[422381191,1778909437000,-500.0,0.00014999,2]
[422381190,1778909437000,-500.0,0.00014999,2]
[422381185,1778909437000,-500.0,0.00014999,2]
[422381192,1778909437000,-500.0,0.00014999,2]
[422381228,1778909438000,-500.0,0.00014999,2]
[422381225,1778909438000,-500.0,0.00014999,2]
[422381234,1778909438000,-500.0,0.00014999,2]
[422381235,1778909438000,-500.0,0.00014999,2]
[422381231,1778909438000,-500.0,0.00014999,2]
[422381233,1778909438000,-500.0,0.00014999,2]
[422381232,1778909438000,-500.0,0.00014999,2]
[422381230,1778909438000,-500.0,0.00014999,2]
[422381229,1778909438000,-500.0,0.00014999,2]
[422381239,1778909438000,-1512.28340066,0.00014999,2]
[422381236,1778909438000,-500.0,0.00014999,2]
[422381227,1778909438000,-500.0,0.00014999,2]
[422381238,1778909438000,-1512.28340066,0.00014999,2]
[422381242,1778909438000,-1512.28340066,0.00014999,2]
[422381241,1778909438000,-1512.28340066,0.00014999,2]
[422381243,1778909438000,-1512.28340066,0.00014999,2]
[422381240,1778909438000,-1512.28340066,0.00014999,2]
[422381246,1778909438000,-1512.28340066,0.00014999,2]
[422381245,1778909438000,-1512.28340066,0.00014999,2]
[422381237,1778909438000,-618.71395317,0.00014999,2]
[422381226,1778909438000,-500.0,0.00014999,2]
[422381206,1778909438000,-500.0,0.00014999,2]
[422381219,1778909438000,-500.0,0.00014999,2]
[422381193,1778909438000,-500.0,0.00014999,2]
[422381195,1778909438000,-500.0,0.00014999,2]
[422381198,1778909438000,-500.0,0.00014999,2]
[422381208,1778909438000,-500.0,0.00014999,2]
[422381200,1778909438000,-500.0,0.00014999,2]
[422381202,1778909438000,-500.0,0.00014999,2]
[422381204,1778909438000,-500.0,0.00014999,2]
[422381223,1778909438000,-500.0,0.00014999,2]
[422381221,1778909438000,-500.0,0.00014999,2]
[422381222,1778909438000,-500.0,0.00014999,2]
[422381213,1778909438000,-500.0,0.00014999,2]
[422381218,1778909438000,-500.0,0.00014999,2]
[422381215,1778909438000,-500.0,0.00014999,2]
[422381212,1778909438000,-500.0,0.00014999,2]
[422381214,1778909438000,-500.0,0.00014999,2]
[422381216,1778909438000,-500.0,0.00014999,2]
[422381210,1778909438000,-500.0,0.00014999,2]
[422381217,1778909438000,-500.0,0.00014999,2]
[422381220,1778909438000,-500.0,0.00014999,2]
[422381224,1778909438000,-500.0,0.00014999,2]
[422381244,1778909438000,-1512.28340066,0.00014999,2]
[422381248,1778909438000,-1512.28340066,0.00014999,2]
[422381257,1778909438000,-731.52,0.00014999,2]
[422381271,1778909438000,-731.52,0.00014999,2]
[422381278,1778909438000,-1814.7400808,0.00014999,2]
[422381273,1778909438000,-731.52,0.00014999,2]
[422381272,1778909438000,-731.52,0.00014999,2]
[422381281,1778909438000,-300.0,0.00014999,2]
[422381279,1778909438000,-1814.7400808,0.00014999,2]
[422381280,1778909438000,-212.7374932,0.00014999,2]
[422381276,1778909438000,-1814.7400808,0.00014999,2]
[422381277,1778909438000,-1814.7400808,0.00014999,2]
[422381284,1778909438000,-300.0,0.00014999,2]
[422381286,1778909438000,-666.0,0.00014999,2]
[422381288,1778909438000,-150.0,0.00015,2]
[422381285,1778909438000,-300.0,0.00014999,2]
[422381283,1778909438000,-189.69911789,0.00014999,2]
[422381289,1778909438000,-150.0,0.00015,2]
[422381287,1778909438000,-898.0,0.00015,5]
[422381282,1778909438000,-300.0,0.00014999,2]
[422381291,1778909438000,-791354.12347705,0.00015,2]
[422381247,1778909438000,-1512.28340066,0.00014999,2]
[422381274,1778909438000,-731.54461365,0.00014999,2]
[422381270,1778909438000,-731.52,0.00014999,2]
[422381290,1778909438000,-3399907.48274947,0.00015,2]
[422381266,1778909438000,-731.52,0.00014999,2]
[422381258,1778909438000,-731.52,0.00014999,2]
[422381252,1778909438000,-731.52,0.00014999,2]
[422381256,1778909438000,-731.52,0.00014999,2]
[422381250,1778909438000,-1512.28340066,0.00014999,2]
[422381249,1778909438000,-1512.28340066,0.00014999,2]
[422381254,1778909438000,-1512.28340066,0.00014999,2]
[422381255,1778909438000,-731.52,0.00014999,2]
[422381253,1778909438000,-731.52,0.00014999,2]
[422381260,1778909438000,-731.52,0.00014999,2]
[422381251,1778909438000,-731.52,0.00014999,2]
[422381263,1778909438000,-731.52,0.00014999,2]
[422381264,1778909438000,-731.52,0.00014999,2]
[422381262,1778909438000,-731.52,0.00014999,2]
[422381261,1778909438000,-731.52,0.00014999,2]
[422381267,1778909438000,-731.52,0.00014999,2]
[422381269,1778909438000,-731.52,0.00014999,2]
[422381265,1778909438000,-731.52,0.00014999,2]
[422381268,1778909438000,-731.52,0.00014999,2]
[422381259,1778909438000,-731.52,0.00014999,2]
[422381275,1778909438000,-1814.7400808,0.00014999,2]
[422381318,1778909443000,-574.37011527,0.00015,2]
[422381317,1778909443000,-209.49000112,0.00014999,2]
[422381325,1778909445000,-287.39032308,0.00015,2]
[422381324,1778909445000,-35475.84785673,0.00015,2]
[422381326,1778909446000,-1394.29459015,0.00015,2]
[422381332,1778910144000,290.47,7.084e-05,2]
[422381333,1778910144000,290.47,7.442e-05,2]
[422381335,1778910144000,290.47,8.158e-05,2]
[422381336,1778910144000,290.47,8.516e-05,2]
[422381334,1778910144000,290.47,7.8e-05,2]
[422381340,1778910145000,290.47,9.949e-05,2]
[422381339,1778910145000,290.47,9.591e-05,2]
[422381338,1778910145000,290.47,9.233e-05,2]
[422381337,1778910145000,290.47,8.875e-05,2]
[422381342,1778910262000,-290.47,0.00010666,2]
[422381344,1778910262000,-150.0,0.00011132,2]
[422381343,1778910262000,-290.47,0.00011024,2]
[422381345,1778910262000,-637.06435844,0.00011338,2]
[422381341,1778910262000,-290.47,0.00010307,2]
[422381348,1778910262000,-290.47,0.0001174,2]
[422381349,1778910262000,-290.47,0.00012098,2]
[422381346,1778910262000,-346.8400236,0.00011338,2]
[422381350,1778910262000,-123.27561796,0.00012457,2]
[422381347,1778910262000,-290.47,0.00011382,2]
[422381352,1778910402000,-81.12157529,0.00012815,2]
[422381351,1778910402000,-167.19438204,0.00012457,2]
[422381372,1778910631000,-1200.0,0.0001336,2]
[422381371,1778910631000,-300.0,0.0001336,2]
[422381369,1778910631000,-500.0,0.00013356,2]
[422381370,1778910631000,-500.0,0.00013356,2]
[422381368,1778910631000,-1108.27393392,0.00013278,2]
[422381364,1778910631000,-209.34842471,0.00012815,2]
[422381367,1778910631000,-891.72606608,0.00013278,2]
[422381366,1778910631000,-183.70393392,0.00013173,2]
[422381365,1778910631000,-106.76606608,0.00013173,2]
[422381373,1778910631000,-2945.96537627,0.00013361,2]
[422381377,1778910631000,-278.52586619,0.00013361,2]
[422381381,1778910631000,-94.92168087,0.00013453,2]
[422381380,1778910631000,-215.03962261,0.0001343,2]
[422381374,1778910631000,-3484.69671229,0.00013361,2]
[422381379,1778910631000,-811.68655311,0.00013361,2]
[422381375,1778910631000,-5880.0,0.00013361,2]
[422381378,1778910631000,-1824.41863951,0.00013361,2]
[422381382,1778910631000,-55.07831913,0.00013453,2]
[422381383,1778910631000,-150.0,0.00013453,2]
[422381384,1778910631000,-150.0,0.00013488,2]
[422381385,1778910631000,-150.0,0.00013488,2]
[422381386,1778910631000,-150.0,0.00013488,2]
[422381376,1778910631000,-467.29685263,0.00013361,2]
[422381426,1778910632000,-479.59,0.00014786,2]
[422381420,1778910632000,-152.73,0.00014771,2]
[422381425,1778910632000,-151.0,0.00014786,2]
[422381422,1778910632000,-236.04,0.00014771,2]
[422381424,1778910632000,-479.59,0.00014786,2]
[422381417,1778910632000,-584.96,0.00014771,2]
[422381418,1778910632000,-152.7,0.00014771,2]
[422381419,1778910632000,-221.22,0.00014771,2]
[422381427,1778910632000,-479.59,0.00014786,2]
[422381408,1778910632000,-150.0,0.000143,2]
[422381421,1778910632000,-153.12,0.00014771,2]
[422381429,1778910632000,-200.0,0.000148,5]
[422381438,1778910632000,-200.0,0.0001488,2]
[422381431,1778910632000,-1641.87639017,0.00014814,2]
[422381430,1778910632000,-153752.4851258,0.00014813,2]
[422381428,1778910632000,-1641.87639017,0.000148,2]
[422381413,1778910632000,-1000.0,0.000146,5]
[422381435,1778910632000,-1641.87639017,0.00014857,2]
[422381437,1778910632000,-186.0,0.00014872,2]
[422381436,1778910632000,-1641.87639017,0.00014871,2]
[422381432,1778910632000,-1641.87639017,0.00014829,2]
[422381434,1778910632000,-10000.0,0.0001485,2]
[422381439,1778910632000,-1641.87639017,0.00014886,2]
[422381441,1778910632000,-500.0,0.00014898,2]
[422381442,1778910632000,-500.0,0.00014898,2]
[422381433,1778910632000,-1641.87639017,0.00014843,2]
[422381414,1778910632000,-195.11,0.00014622,2]
[422381416,1778910632000,-200.0,0.000147,5]
[422381409,1778910632000,-400.0,0.000143,5]
[422381440,1778910632000,-410.13465338,0.00014895,2]
[422381387,1778910632000,-150.00000001,0.00013488,2]
[422381389,1778910632000,-412.4,0.00013608,2]
[422381388,1778910632000,-290.47,0.00013531,2]
[422381392,1778910632000,-150.0,0.0001384,2]
[422381391,1778910632000,-200.0,0.00013699,2]
[422381393,1778910632000,-290.47,0.00013889,2]
[422381390,1778910632000,-3383.04,0.00013608,2]
[422381394,1778910632000,-1593.51,0.00013911,2]
[422381399,1778910632000,-310.0,0.0001404,2]
[422381400,1778910632000,-600.0,0.00014096,2]
[422381396,1778910632000,-586.2,0.00013925,2]
[422381404,1778910632000,-250.0,0.00014096,2]
[422381402,1778910632000,-2500.0,0.00014096,2]
[422381398,1778910632000,-5035.46,0.0001399,2]
[422381401,1778910632000,-150.0,0.00014096,2]
[422381395,1778910632000,-195.11,0.00013925,2]
[422381397,1778910632000,-170.21,0.00013952,2]
[422381403,1778910632000,-300.0,0.00014096,2]
[422381412,1778910632000,-800.0,0.000145,5]
[422381405,1778910632000,-759.24146496,0.00014199,2]
[422381406,1778910632000,-8845.9576,0.000142,2]
[422381410,1778910632000,-3000.0,0.0001439,2]
[422381407,1778910632000,-200.0,0.000142,5]
[422381415,1778910632000,-672.63527214,0.000147,2]
[422381411,1778910632000,-600.0,0.000144,5]
[422381443,1778910632000,-500.0,0.00014898,2]
[422381423,1778910632000,-173.77,0.00014771,2]
[422381448,1778910632000,-460.97094674,0.00014899,2]
[422381482,1778910632000,-344.0,0.0001496,2]
[422381480,1778910632000,-2000.0,0.00014938,2]
[422381481,1778910632000,-193.9447139,0.0001496,2]
[422381479,1778910632000,-656.57067011,0.000149,2]
[422381474,1778910632000,-200.0,0.000149,5]
[422381477,1778910632000,-16937.46237904,0.000149,3]
[422381476,1778910632000,-1641.87639017,0.000149,2]
[422381483,1778910632000,-161.0,0.0001496,2]
[422381475,1778910632000,-3799.21089014,0.000149,2]
[422381484,1778910632000,-194.0,0.0001496,2]
[422381487,1778910632000,-500.0,0.00014998,2]
[422381486,1778910632000,-500.0,0.00014998,2]
[422381492,1778910632000,-500.0,0.00014998,2]
[422381490,1778910632000,-500.0,0.00014998,2]
[422381485,1778910632000,-151.0,0.00014997,2]
[422381489,1778910632000,-500.0,0.00014998,2]
[422381496,1778910632000,-500.0,0.00014998,2]
[422381495,1778910632000,-500.0,0.00014998,2]
[422381493,1778910632000,-500.0,0.00014998,2]
[422381488,1778910632000,-500.0,0.00014998,2]
[422381494,1778910632000,-500.0,0.00014998,2]
[422381491,1778910632000,-500.0,0.00014998,2]
[422381498,1778910632000,-500.0,0.00014999,2]
[422381500,1778910632000,-500.0,0.00014999,2]
[422381499,1778910632000,-501.56132056,0.00014999,2]
[422381478,1778910632000,-245.3316337,0.000149,2]
[422381473,1778910632000,-153.61309489,0.000149,2]
[422381449,1778910632000,-3799.21089014,0.00014899,2]
[422381467,1778910632000,-711.62061464,0.000149,2]
[422381470,1778910632000,-5000.0,0.000149,2]
[422381447,1778910632000,-3799.21089018,0.00014899,2]
[422381446,1778910632000,-460.97094674,0.00014899,2]
[422381445,1778910632000,-191.828,0.00014899,2]
[422381450,1778910632000,-460.97094674,0.00014899,2]
[422381451,1778910632000,-3799.21089014,0.00014899,2]
[422381453,1778910632000,-3799.21089014,0.00014899,2]
[422381458,1778910632000,-460.97094674,0.000149,2]
[422381462,1778910632000,-460.97094674,0.000149,2]
[422381455,1778910632000,-3799.21089014,0.00014899,2]
[422381460,1778910632000,-460.97094674,0.000149,2]
[422381456,1778910632000,-460.97094674,0.000149,2]
[422381457,1778910632000,-3799.21089014,0.000149,2]
[422381444,1778910632000,-789.12,0.00014899,2]
[422381452,1778910632000,-460.97094674,0.00014899,2]
[422381459,1778910632000,-3799.21089014,0.000149,2]
[422381469,1778910632000,-2000.0,0.000149,2]
[422381468,1778910632000,-4285.92097488,0.000149,2]
[422381466,1778910632000,-32468.00458536,0.000149,2]
[422381463,1778910632000,-3799.21089014,0.000149,2]
[422381465,1778910632000,-1500.0,0.000149,2]
[422381464,1778910632000,-604.57774349,0.000149,2]
[422381471,1778910632000,-666.0,0.000149,3]
[422381472,1778910632000,-460.97094674,0.000149,2]
[422381454,1778910632000,-460.97094674,0.00014899,2]
[422381461,1778910632000,-3799.21089014,0.000149,2]
[422381497,1778910632000,-500.0,0.00014999,2]
[422381539,1778910633000,-500.0,0.00014999,2]
[422381540,1778910633000,-500.0,0.00014999,2]
[422381537,1778910633000,-500.0,0.00014999,2]
[422381535,1778910633000,-500.0,0.00014999,2]
[422381542,1778910633000,-425.1954329,0.00014999,2]
[422381532,1778910633000,-500.0,0.00014999,2]
[422381536,1778910633000,-500.0,0.00014999,2]
[422381531,1778910633000,-500.0,0.00014999,2]
[422381541,1778910633000,-500.0,0.00014999,2]
[422381534,1778910633000,-500.0,0.00014999,2]
[422381538,1778910633000,-500.0,0.00014999,2]
[422381543,1778910633000,-500.0,0.00014999,2]
[422381545,1778910633000,-500.0,0.00014999,2]
[422381550,1778910633000,-500.0,0.00014999,2]
[422381549,1778910633000,-500.0,0.00014999,2]
[422381544,1778910633000,-500.0,0.00014999,2]
[422381551,1778910633000,-244.61455555,0.00014999,2]
[422381552,1778910633000,-500.0,0.00014999,2]
[422381548,1778910633000,-500.0,0.00014999,2]
[422381546,1778910633000,-212.7374932,0.00014999,2]
[422381547,1778910633000,-500.0,0.00014999,2]
[422381553,1778910633000,-500.0,0.00014999,2]
[422381556,1778910633000,-500.0,0.00014999,2]
[422381533,1778910633000,-500.0,0.00014999,2]
[422381554,1778910633000,-500.0,0.00014999,2]
[422381527,1778910633000,-500.0,0.00014999,2]
[422381520,1778910633000,-500.0,0.00014999,2]
[422381525,1778910633000,-500.0,0.00014999,2]
[422381503,1778910633000,-355.43722973,0.00014999,2]
[422381502,1778910633000,-500.0,0.00014999,2]
[422381501,1778910633000,-500.0,0.00014999,2]
[422381508,1778910633000,-500.0,0.00014999,2]
[422381506,1778910633000,-500.0,0.00014999,2]
[422381507,1778910633000,-500.0,0.00014999,2]
[422381505,1778910633000,-500.0,0.00014999,2]
[422381509,1778910633000,-500.0,0.00014999,2]
[422381510,1778910633000,-500.0,0.00014999,2]
[422381514,1778910633000,-500.0,0.00014999,2]
[422381513,1778910633000,-500.0,0.00014999,2]
[422381519,1778910633000,-500.0,0.00014999,2]
[422381518,1778910633000,-500.0,0.00014999,2]
[422381555,1778910633000,-500.0,0.00014999,2]
[422381511,1778910633000,-500.0,0.00014999,2]
[422381517,1778910633000,-500.0,0.00014999,2]
[422381512,1778910633000,-500.0,0.00014999,2]
[422381516,1778910633000,-500.0,0.00014999,2]
[422381515,1778910633000,-500.0,0.00014999,2]
[422381522,1778910633000,-500.0,0.00014999,2]
[422381523,1778910633000,-500.0,0.00014999,2]
[422381524,1778910633000,-500.0,0.00014999,2]
[422381526,1778910633000,-500.0,0.00014999,2]
[422381529,1778910633000,-500.0,0.00014999,2]
[422381528,1778910633000,-500.0,0.00014999,2]
[422381530,1778910633000,-500.0,0.00014999,2]
[422381559,1778910633000,-500.0,0.00014999,2]
[422381504,1778910633000,-500.0,0.00014999,2]
[422381557,1778910633000,-500.0,0.00014999,2]
[422381592,1778910633000,-500.0,0.00014999,2]
[422381594,1778910633000,-500.0,0.00014999,2]
[422381591,1778910633000,-500.0,0.00014999,2]
[422381599,1778910633000,-500.0,0.00014999,2]
[422381600,1778910633000,-500.0,0.00014999,2]
[422381598,1778910633000,-500.0,0.00014999,2]
[422381596,1778910633000,-500.0,0.00014999,2]
[422381590,1778910633000,-500.0,0.00014999,2]
[422381593,1778910633000,-500.0,0.00014999,2]
[422381595,1778910633000,-500.0,0.00014999,2]
[422381597,1778910633000,-500.0,0.00014999,2]
[422381602,1778910633000,-500.0,0.00014999,2]
[422381601,1778910633000,-500.0,0.00014999,2]
[422381603,1778910633000,-701.04,0.00014999,2]
[422381605,1778910633000,-701.04,0.00014999,2]
[422381604,1778910633000,-500.0,0.00014999,2]
[422381607,1778910633000,-500.0,0.00014999,2]
[422381610,1778910633000,-701.04,0.00014999,2]
[422381608,1778910633000,-701.04,0.00014999,2]
[422381609,1778910633000,-500.0,0.00014999,2]
[422381606,1778910633000,-701.04,0.00014999,2]
[422381611,1778910633000,-500.0,0.00014999,2]
[422381612,1778910633000,-701.04,0.00014999,2]
[422381613,1778910633000,-500.0,0.00014999,2]
[422381558,1778910633000,-400.0,0.00014999,2]
[422381587,1778910633000,-500.0,0.00014999,2]
[422381584,1778910633000,-504.08398651,0.00014999,2]
[422381521,1778910633000,-500.0,0.00014999,2]
[422381571,1778910633000,-500.0,0.00014999,2]
[422381586,1778910633000,-500.0,0.00014999,2]
[422381564,1778910633000,-500.0,0.00014999,2]
[422381563,1778910633000,-500.0,0.00014999,2]
[422381562,1778910633000,-500.0,0.00014999,2]
[422381565,1778910633000,-500.0,0.00014999,2]
[422381561,1778910633000,-500.0,0.00014999,2]
[422381585,1778910633000,-500.0,0.00014999,2]
[422381574,1778910633000,-515.14926728,0.00014999,2]
[422381582,1778910633000,-500.0,0.00014999,2]
[422381569,1778910633000,-500.0,0.00014999,2]
[422381572,1778910633000,-251.64062163,0.00014999,2]
[422381566,1778910633000,-500.0,0.00014999,2]
[422381589,1778910633000,-500.0,0.00014999,2]
[422381560,1778910633000,-500.0,0.00014999,2]
[422381580,1778910633000,-500.0,0.00014999,2]
[422381570,1778910633000,-500.0,0.00014999,2]
[422381576,1778910633000,-500.0,0.00014999,2]
[422381578,1778910633000,-500.0,0.00014999,2]
[422381567,1778910633000,-500.0,0.00014999,2]
[422381575,1778910633000,-500.0,0.00014999,2]
[422381568,1778910633000,-500.0,0.00014999,2]
[422381577,1778910633000,-500.0,0.00014999,2]
[422381581,1778910633000,-509.75253239,0.00014999,2]
[422381579,1778910633000,-500.0,0.00014999,2]
[422381583,1778910633000,-500.0,0.00014999,2]
[422381573,1778910633000,-500.0,0.00014999,2]
[422381588,1778910633000,-500.0,0.00014999,2]
[422381635,1778910634000,-701.04,0.00014999,2]
[422381632,1778910634000,-500.0,0.00014999,2]
[422381637,1778910634000,-701.04,0.00014999,2]
[422381636,1778910634000,-500.0,0.00014999,2]
[422381642,1778910634000,-500.0,0.00014999,2]
[422381638,1778910634000,-500.0,0.00014999,2]
[422381645,1778910634000,-701.04,0.00014999,2]
[422381640,1778910634000,-500.0,0.00014999,2]
[422381639,1778910634000,-701.04,0.00014999,2]
[422381641,1778910634000,-701.04,0.00014999,2]
[422381631,1778910634000,-701.04,0.00014999,2]
[422381643,1778910634000,-701.04,0.00014999,2]
[422381646,1778910634000,-500.0,0.00014999,2]
[422381644,1778910634000,-500.0,0.00014999,2]
[422381633,1778910634000,-701.04,0.00014999,2]
[422381624,1778910634000,-500.0,0.00014999,2]
[422381628,1778910634000,-500.0,0.00014999,2]
[422381614,1778910634000,-701.04,0.00014999,2]
[422381615,1778910634000,-500.0,0.00014999,2]
[422381617,1778910634000,-701.04,0.00014999,2]
[422381616,1778910634000,-500.0,0.00014999,2]
[422381657,1778910634000,-506.02433073,0.00014999,2]
[422381623,1778910634000,-701.04,0.00014999,2]
[422381630,1778910634000,-500.0,0.00014999,2]
[422381618,1778910634000,-500.0,0.00014999,2]
[422381620,1778910634000,-500.0,0.00014999,2]
[422381621,1778910634000,-701.04,0.00014999,2]
[422381625,1778910634000,-701.04,0.00014999,2]
[422381627,1778910634000,-701.04,0.00014999,2]
[422381626,1778910634000,-500.0,0.00014999,2]
[422381629,1778910634000,-701.04,0.00014999,2]
[422381622,1778910634000,-500.0,0.00014999,2]
[422381619,1778910634000,-701.04,0.00014999,2]
[422381634,1778910634000,-500.0,0.00014999,2]
[422381648,1778910634000,-500.0,0.00014999,2]
[422381670,1778910634000,-500.33214469,0.00014999,2]
[422381672,1778910634000,-550.91,0.00014999,2]
[422381671,1778910634000,-550.91,0.00014999,2]
[422381680,1778910634000,-300.0,0.00014999,2]
[422381682,1778910634000,-300.0,0.00014999,2]
[422381681,1778910634000,-300.0,0.00014999,2]
[422381677,1778910634000,-550.91,0.00014999,2]
[422381683,1778910634000,-49.19323451,0.00014999,2]
[422381674,1778910634000,-550.91,0.00014999,2]
[422381678,1778910634000,-550.91,0.00014999,2]
[422381673,1778910634000,-550.91,0.00014999,2]
[422381675,1778910634000,-550.91,0.00014999,2]
[422381676,1778910634000,-550.91,0.00014999,2]
[422381679,1778910634000,-300.0,0.00014999,2]
[422381652,1778910634000,-618.71395317,0.00014999,2]
[422381663,1778910634000,-550.91,0.00014999,2]
[422381666,1778910634000,-550.91,0.00014999,2]
[422381647,1778910634000,-701.04,0.00014999,2]
[422381667,1778910634000,-550.91,0.00014999,2]
[422381651,1778910634000,-500.0,0.00014999,2]
[422381668,1778910634000,-550.91,0.00014999,2]
[422381649,1778910634000,-701.06461365,0.00014999,2]
[422381650,1778910634000,-500.0,0.00014999,2]
[422381656,1778910634000,-500.0,0.00014999,2]
[422381653,1778910634000,-500.0,0.00014999,2]
[422381655,1778910634000,-500.0,0.00014999,2]
[422381654,1778910634000,-504.92605126,0.00014999,2]
[422381664,1778910634000,-550.91,0.00014999,2]
[422381662,1778910634000,-550.91,0.00014999,2]
[422381665,1778910634000,-550.91,0.00014999,2]
[422381661,1778910634000,-500.0,0.00014999,2]
[422381660,1778910634000,-529.54071265,0.00014999,2]
[422381659,1778910634000,-500.0,0.00014999,2]
[422381669,1778910634000,-550.91,0.00014999,2]
[422381658,1778910634000,-500.0,0.00014999,2]
[422381692,1778910637000,-550.91,0.00014999,2]
[422381688,1778910637000,-1017.44140791,0.00014699,2]
[422381699,1778910637000,-551.09864501,0.00014999,2]
[422381690,1778910637000,-2500.0,0.00014713,2]
[422381689,1778910637000,-1002.35286678,0.00014699,2]
[422381693,1778910637000,-550.91,0.00014999,2]
[422381691,1778910637000,-157.09232906,0.000149,2]
[422381696,1778910637000,-550.91,0.00014999,2]
[422381697,1778910637000,-550.91,0.00014999,2]
[422381695,1778910637000,-550.91,0.00014999,2]
[422381698,1778910637000,-550.91,0.00014999,2]
[422381694,1778910637000,-550.91,0.00014999,2]
[422381712,1778910638000,-150.0,0.00015,2]
[422381711,1778910638000,-441.6048363,0.00015,2]
[422381709,1778910638000,-1174385.24579399,0.00015,2]
[422381704,1778910638000,-150.0,0.00015,2]
[422381705,1778910638000,-150.0,0.00015,2]